fUST/lending_fUST_20250119
["ID","MTS","AMOUNT","RATE_DAILY","PERIOD"]
[349510812,1737252644140,-504.97133581,0.00023134,3]
[349510813,1737252644149,-502.88618609,0.00023134,3]
[349510814,1737252644159,-506.71706425,0.00023134,3]
[349510815,1737252644168,-543.37411627,0.00023134,3]
[349510816,1737252644177,-504.54167491,0.00023134,3]
[349510817,1737252644186,-500.0,0.00023134,3]
[349510818,1737252644195,-504.0416914,0.00023134,3]
[349510819,1737252644205,-586.45198429,0.00023134,3]
[349510820,1737252644214,-505.65850601,0.00023134,3]
[349510821,1737252644223,-500.0,0.00023134,3]
[349510822,1737252644231,-500.0,0.00023134,3]
[349510823,1737252644240,-500.0,0.00023134,3]
[349510824,1737252644331,-411.51135591,0.00023134,3]
[349510825,1737252644349,-88.48864409,0.00023134,3]
[349510826,1737252644358,-590.38879545,0.00023134,3]
[349510827,1737252644367,-252.78256046,0.00023134,3]
[349510828,1737252644425,-247.21743954,0.00023134,3]
[349510829,1737252644435,-500.0,0.00023134,3]
[349510830,1737252644443,-500.0,0.00023134,3]
[349510831,1737252644453,-503.32142213,0.00023134,3]
[349510832,1737252644462,-500.0,0.00023134,3]
[349510833,1737252644471,-503.8779353,0.00023134,3]
[349510834,1737252644480,-500.0,0.00023134,3]
[349510835,1737252644489,-500.0,0.00023134,3]
[349510836,1737252644499,-502.71230129,0.00023134,3]
[349510837,1737252644508,-500.0,0.00023134,3]
[349510838,1737252644517,-500.0,0.00023134,3]
[349510839,1737252644526,-500.0,0.00023134,3]
[349510840,1737252644535,-503.32464854,0.00023134,3]
[349510841,1737252644544,-502.3144906,0.00023134,3]
[349510842,1737252644553,-505.45024862,0.00023134,3]
[349510843,1737252644563,-500.0,0.00023134,3]
[349510844,1737252644571,-500.0,0.00023134,3]
[349510845,1737252644580,-252.822342,0.00023134,7]
[349510846,1737252644589,-500.0,0.00023134,3]
[349510847,1737252644599,-252.822342,0.00023134,7]
[349510848,1737252644608,-500.0,0.00023134,3]
[349510849,1737252644616,-500.0,0.00023134,3]
[349510850,1737252644625,-500.0,0.00023134,3]
[349510851,1737252644635,-500.0,0.00023134,3]
[349510852,1737252644644,-500.0,0.00023134,3]
[349510853,1737252644653,-500.0,0.00023134,3]
[349510854,1737252644662,-500.0,0.00023134,3]
[349510855,1737252644671,-500.0,0.00023134,3]
[349510856,1737252644681,-500.0,0.00023134,3]
[349510857,1737252644690,-591.06321886,0.00023134,3]
[349510858,1737252644699,-500.0,0.00023134,3]
[349510859,1737252644709,-515.78627793,0.00023134,3]
[349510860,1737252644718,-500.0,0.00023134,3]
[349510861,1737252644727,-500.0,0.00023134,3]
[349510862,1737252644736,-500.0,0.00023134,3]
[349510863,1737252644747,-500.0,0.00023134,3]
[349510864,1737252644756,-500.0,0.00023134,3]
[349510865,1737252644765,-344.87096887,0.00023134,3]
[349510866,1737252644774,-500.0,0.00023134,3]
[349510867,1737252644783,-509.23727156,0.00023134,3]
[349510868,1737252644792,-500.0,0.00023134,3]
[349510869,1737252644802,-504.79814024,0.00023134,3]
[349510870,1737252644811,-535.91482358,0.00023134,3]
[349510871,1737252644820,-500.0,0.00023134,3]
[349510872,1737252644829,-500.0,0.00023134,3]
[349510873,1737252644839,-500.0,0.00023134,3]
[349510874,1737252644851,-505.95781468,0.00023134,3]
[349510875,1737252644861,-640.42668812,0.00023134,3]
[349510876,1737252644870,-502.32509964,0.00023134,3]
[349510877,1737252644879,-345.96451898,0.00023134,3]
[349510878,1737252644888,-500.0,0.00023134,3]
[349510879,1737252644897,-500.0,0.00023134,3]
[349510880,1737252644907,-646.37773156,0.00023134,3]
[349510881,1737252644917,-504.74157458,0.00023134,3]
[349510882,1737252644927,-506.57760848,0.00023134,3]
[349510883,1737252644936,-500.0,0.00023134,3]
[349510884,1737252644945,-500.0,0.00023134,3]
[349510885,1737252644954,-500.0,0.00023134,3]
[349510886,1737252644964,-500.0,0.00023134,3]
[349510887,1737252644973,-502.83790361,0.00023135,3]
[349510888,1737252644983,-504.60633937,0.00023135,3]
[349510889,1737252644994,-505.48276983,0.00023135,3]
[349510890,1737252645002,-504.51329978,0.00023135,3]
[349510891,1737252645013,-503.46453891,0.00023135,3]
[349510892,1737252645022,-502.39654609,0.00023135,3]
[349510893,1737252645031,-500.0,0.00023135,3]
[349510894,1737252645040,-502.74746471,0.00023135,3]
[349510895,1737252645049,-506.53944835,0.00023135,3]
[349510896,1737252645059,-502.35684246,0.00023135,3]
[349510897,1737252645068,-504.73830461,0.00023135,3]
[349510898,1737252645077,-502.68906869,0.00023135,3]
[349510899,1737252645086,-497.9956384,0.00023135,3]
[349510900,1737252645095,-504.95155374,0.00023135,3]
[349510901,1737252645103,-505.43742292,0.00023135,3]
[349510902,1737252645112,-507.03739318,0.00023135,3]
[349510903,1737252645121,-506.99924211,0.00023135,3]
[349510904,1737252645130,-504.01134976,0.00023135,3]
[349510905,1737252645139,-507.12674942,0.00023135,3]
[349510906,1737252645148,-504.91891821,0.00023135,3]
[349510907,1737252645157,-504.14776747,0.00023135,3]
[349510908,1737252645166,-505.30032469,0.00023135,3]
[349510909,1737252645174,-504.81075241,0.00023135,3]
[349510910,1737252645184,-507.07580898,0.00023135,3]
[349510911,1737252645192,-504.00335625,0.00023135,3]
[349510912,1737252645201,-505.95847072,0.00023135,3]
[349510913,1737252645210,-505.5765924,0.00023135,3]
[349510914,1737252645219,-506.98586818,0.00023135,3]
[349510915,1737252645228,-500.0,0.00023135,3]
[349510916,1737252645237,-500.0,0.00023135,3]
[349510917,1737252645248,-506.58173812,0.00023135,3]
[349510918,1737252645257,-505.14670721,0.00023135,3]
[349510919,1737252645266,-500.0,0.00023135,3]
[349510920,1737252645275,-500.0,0.00023135,3]
[349510921,1737252645284,-500.0,0.00023135,3]
[349510922,1737252645293,-500.0,0.00023135,3]
[349510923,1737252645302,-500.0,0.00023135,3]
[349510924,1737252645311,-500.0,0.00023135,3]
[349510925,1737252645321,-7574.06,0.00023135,3]
[349510926,1737252645330,-500.0,0.00023135,3]
[349510927,1737252645339,-500.0,0.00023135,3]
[349510928,1737252645348,-500.0,0.00023135,3]
[349510929,1737252645358,-500.0,0.00023135,3]
[349510930,1737252645367,-252.822342,0.00023135,7]
[349510931,1737252645376,-252.822342,0.00023135,7]
[349510932,1737252645385,-67.1337513,0.00023135,3]
[349510933,1737252645397,-432.8662487,0.00023135,3]
[349510934,1737252645407,-252.822342,0.00023135,7]
[349510935,1737252645416,-252.822342,0.00023135,7]
[349510936,1737252645425,-500.0,0.00023135,3]
[349510937,1737252645435,-500.0,0.00023135,3]
[349510938,1737252645444,-500.0,0.00023135,3]
[349510939,1737252645453,-500.0,0.00023135,3]
[349510940,1737252645462,-500.0,0.00023135,3]
[349510941,1737252645471,-500.0,0.00023135,3]
[349510942,1737252645480,-500.0,0.00023135,3]
[349510943,1737252645489,-506.29249789,0.00023135,3]
[349510944,1737252645499,-500.0,0.00023135,3]
[349510945,1737252645508,-500.0,0.00023135,3]
[349510946,1737252645517,-500.0,0.00023135,3]
[349510947,1737252645526,-500.0,0.00023135,3]
[349510948,1737252645536,-500.0,0.00023135,3]
[349510949,1737252645545,-500.0,0.00023135,3]
[349510950,1737252645554,-500.0,0.00023135,3]
[349510951,1737252645563,-500.0,0.00023135,3]
[349510952,1737252645572,-500.0,0.00023135,3]
[349510953,1737252645581,-443.06224631,0.00023135,3]
[349510954,1737252645591,-500.0,0.00023135,3]
[349510955,1737252645599,-500.0,0.00023135,3]
[349510956,1737252645608,-500.0,0.00023135,3]
[349510957,1737252645618,-500.0,0.00023135,3]
[349510958,1737252645627,-506.97024634,0.00023135,3]
[349510959,1737252645636,-381.99681793,0.00023135,3]
[349510960,1737252645645,-500.0,0.00023135,3]
[349510961,1737252645655,-500.0,0.00023135,3]
[349510962,1737252645664,-500.0,0.00023135,3]
[349510963,1737252645674,-498.74722621,0.00023135,3]
[349510964,1737252645684,-504.08586794,0.00023135,3]
[349510965,1737252645694,-500.0,0.00023136,3]
[349510966,1737252645703,-500.0,0.00023136,3]
[349510967,1737252645713,-500.0,0.00023136,3]
[349510968,1737252645722,-506.82033904,0.00023136,3]
[349510969,1737252645731,-500.0,0.00023136,3]
[349510970,1737252645740,-502.81293173,0.00023136,3]
[349510971,1737252645751,-503.25060641,0.00023136,3]
[349510972,1737252645760,-504.15181137,0.00023136,3]
[349510973,1737252645769,-505.45449797,0.00023136,3]
[349510974,1737252645778,-500.0,0.00023136,3]
[349510975,1737252645787,-503.62748757,0.00023136,3]
[349510976,1737252645797,-507.25839014,0.00023136,3]
[349510977,1737252645805,-500.0,0.00023136,3]
[349510978,1737252645815,-506.28131388,0.00023136,3]
[349510979,1737252645827,-504.97462795,0.00023136,3]
[349510980,1737252645837,-506.28603316,0.00023136,3]
[349510981,1737252645851,-252.822342,0.00023136,7]
[349510982,1737252645859,-252.82235039,0.00023136,7]
[349510983,1737252645869,-500.0,0.00023144,3]
[349510984,1737252645878,-502.92560354,0.00023144,3]
[349510985,1737252645887,-500.0,0.00023144,3]
[349510986,1737252645896,-503.74662823,0.00023144,3]
[349510987,1737252645905,-522.4797553,0.00023144,3]
[349510988,1737252645913,-502.57513955,0.00023144,3]
[349510989,1737252645923,-505.61613242,0.00023144,3]
[349510990,1737252645932,-502.84442733,0.00023144,3]
[349510991,1737252645942,-542.01074465,0.00023144,3]
[349510992,1737252645951,-502.56466174,0.00023144,3]
[349510993,1737252645959,-502.60243141,0.00023144,3]
[349510994,1737252645967,-502.42626881,0.00023144,3]
[349510995,1737252645976,-503.46519647,0.00023144,3]
[349510996,1737252645985,-503.56214182,0.00023144,3]
[349510997,1737252645995,-501.90943549,0.00023144,3]
[349510998,1737252646004,-503.43247899,0.00023144,3]
[349510999,1737252646013,-503.41541976,0.00023144,3]
[349511000,1737252646022,-561.97468589,0.00023144,3]
[349511001,1737252646031,-500.0,0.00023144,3]
[349511002,1737252646041,-617.89866365,0.00023144,3]
[349511003,1737252646050,-500.0,0.00023144,3]
[349511004,1737252646059,-508.14954707,0.00023144,3]
[349511005,1737252646068,-503.14000877,0.00023144,3]
[349511006,1737252646077,-510.15766041,0.00023144,3]
[349511007,1737252646086,-503.00605685,0.00023144,3]
[349511008,1737252646095,-502.70737569,0.00023144,3]
[349511009,1737252646104,-502.0483325,0.00023144,3]
[349511010,1737252646113,-503.26693056,0.00023144,3]
[349511011,1737252646122,-500.0,0.00023144,3]
[349511012,1737252646131,-504.94531306,0.00023144,3]
[349511013,1737252646140,-503.35476048,0.00023144,3]
[349511014,1737252646149,-500.0,0.00023144,3]
[349511015,1737252646158,-505.27027587,0.00023144,3]
[349511016,1737252646168,-250.21271209,0.00023144,3]
[349511017,1737252646177,-500.0,0.00023144,3]
[349511018,1737252646187,-500.0,0.00023144,3]
[349511019,1737252646196,-505.58672162,0.00023144,3]
[349511020,1737252646205,-503.71483133,0.00023144,3]
[349511021,1737252646214,-512.16324124,0.00023144,3]
[349511022,1737252646223,-507.77858886,0.00023144,3]
[349511023,1737252646233,-505.5849836,0.00023144,3]
[349511024,1737252646242,-504.10828092,0.00023144,3]
[349511025,1737252646252,-472.56928336,0.00023144,3]
[349511026,1737252646261,-507.79039964,0.00023144,3]
[349511027,1737252646270,-505.03988788,0.00023144,3]
[349511028,1737252646279,-500.0,0.00023144,3]
[349511029,1737252646289,-508.35106792,0.00023144,3]
[349511030,1737252646298,-505.23998763,0.00023144,3]
[349511031,1737252646306,-500.0,0.00023144,3]
[349511032,1737252646316,-152.96013806,0.0002317,2]
[349511033,1737252646406,-304.41273962,0.00023176,3]
[349511034,1737252646416,-151.0,0.00023177,2]
[349511035,1737252646425,-151.0,0.00023177,2]
[349511036,1737252646434,-151.0,0.00023177,2]
[349511037,1737252646443,-151.0,0.00023177,2]
[349511038,1737252646452,-151.0,0.00023177,2]
[349511039,1737252646461,-151.0,0.00023177,2]
[349511040,1737252646470,-151.0,0.00023177,2]
[349511041,1737252646479,-151.0,0.00023177,2]
[349511042,1737252646493,-151.0,0.00023177,2]
[349511043,1737252646503,-151.0,0.00023177,2]
[349511044,1737252646512,-151.0,0.00023177,2]
[349511046,1737252646522,-151.0,0.00023177,2]
[349511048,1737252646531,-151.0,0.00023177,2]
[349511049,1737252646540,-151.0,0.00023177,2]
[349511050,1737252646549,-151.0,0.00023177,2]
[349511051,1737252646558,-151.0,0.00023177,2]
[349511052,1737252646567,-151.0,0.00023177,2]
[349511053,1737252646575,-151.0,0.00023177,2]
[349511054,1737252646585,-151.0,0.00023177,2]
[349511055,1737252646594,-213.67,0.00023177,2]
[349511056,1737252646603,-1003.0,0.00023211,4]
[349511057,1737252646611,-1351.60516399,0.00023236,2]
[349511058,1737252646620,-304.41273962,0.00023245,3]
[349511059,1737252646630,-500.0,0.00023269,3]
[349511060,1737252646639,-526.05,0.00023269,3]
[349511061,1737252646648,-500.0,0.00023269,3]
[349511062,1737252646657,-500.0,0.00023269,3]
[349511063,1737252646666,-500.0,0.00023269,3]
[349511064,1737252646675,-513.10556831,0.00023269,3]
[349511065,1737252646684,-500.0,0.00023269,3]
[349511066,1737252646694,-500.0,0.00023269,3]
[349511067,1737252646703,-1419.11,0.00023269,3]
[349511068,1737252646712,-618.56,0.00023269,3]
[349511069,1737252646721,-500.0,0.00023269,3]
[349511070,1737252646730,-583.25,0.00023269,3]
[349511071,1737252646739,-500.0,0.0002327,3]
[349511072,1737252646749,-500.0,0.0002327,3]
[349511073,1737252646759,-209.12436225,0.0002327,3]
[349511074,1737252646768,-500.0,0.0002327,3]
[349511075,1737252646777,-500.0,0.0002327,3]
[349511076,1737252646786,-500.0,0.0002327,3]
[349511077,1737252646795,-500.0,0.0002327,3]
[349511078,1737252646803,-500.0,0.0002327,3]
[349511079,1737252646812,-500.0,0.0002327,3]
[349511080,1737252646821,-500.0,0.0002327,3]
[349511081,1737252646830,-500.0,0.0002327,3]
[349511082,1737252646839,-562.54256119,0.0002327,3]
[349511083,1737252646850,-500.0,0.0002327,3]
[349511084,1737252646860,-500.0,0.0002327,3]
[349511085,1737252646869,-500.0,0.0002327,3]
[349511086,1737252646878,-500.0,0.0002327,3]
[349511087,1737252646889,-280.299403,0.0002327,3]
[349511088,1737252646898,-500.0,0.0002327,3]
[349511089,1737252646910,-1602.07,0.0002327,3]
[349511090,1737252646922,-273.24,0.0002327,3]
[349511091,1737252646931,-4779.75,0.0002327,3]
[349511092,1737252646941,-500.0,0.0002327,3]
[349511093,1737252646950,-500.0,0.0002327,3]
[349511094,1737252646959,-500.0,0.0002327,3]
[349511095,1737252646968,-500.0,0.0002327,3]
[349511096,1737252646977,-500.0,0.0002327,3]
[349511097,1737252646987,-2110.91,0.0002327,3]
[349511098,1737252646996,-500.0,0.0002327,3]
[349511099,1737252647006,-500.0,0.00023271,3]
[349511100,1737252647015,-500.0,0.00023271,3]
[349511101,1737252647023,-506.50034417,0.00023271,3]
[349511102,1737252647033,-503.7609624,0.00023271,3]
[349511103,1737252647042,-500.0,0.00023271,3]
[349511104,1737252647051,-500.0,0.00023271,3]
[349511105,1737252647060,-214.23886644,0.00023271,3]
[349511106,1737252647070,-506.62368063,0.00023271,3]
[349511107,1737252647079,-500.0,0.00023271,3]
[349511108,1737252647089,-500.0,0.00023271,3]
[349511109,1737252647098,-500.0,0.00023271,3]
[349511110,1737252647107,-508.43070922,0.00023271,3]
[349511111,1737252647116,-500.0,0.00023271,3]
[349511112,1737252647125,-563.78841575,0.00023271,3]
[349511113,1737252647134,-500.0,0.00023271,3]
[349511114,1737252647143,-225.94973827,0.00023271,3]
[349511115,1737252647152,-500.0,0.00023271,3]
[349511116,1737252647161,-500.0,0.00023271,3]
[349511117,1737252647169,-549.76884402,0.00023271,3]
[349511118,1737252647178,-500.0,0.00023271,3]
[349511119,1737252647187,-500.0,0.00023271,3]
[349511120,1737252647196,-500.0,0.00023271,3]
[349511121,1737252647205,-273.16507564,0.00023271,3]
[349511122,1737252647214,-500.0,0.00023271,3]
[349511123,1737252647223,-649.88,0.00023271,3]
[349511124,1737252647232,-390.98249754,0.00023271,3]
[349511125,1737252647241,-364.19913756,0.00023271,3]
[349511126,1737252647252,-500.0,0.00023271,3]
[349511127,1737252647261,-500.0,0.00023271,3]
[349511128,1737252647269,-179.73198138,0.00023271,3]
[349511129,1737252647278,-500.0,0.00023271,3]
[349511130,1737252647287,-504.40069267,0.00023271,3]
[349511131,1737252647297,-503.7628916,0.00023271,3]
[349511132,1737252647306,-361.9724192,0.00023271,3]
[349511133,1737252647315,-203.08372164,0.00023271,3]
[349511134,1737252647325,-500.0,0.00023271,3]
[349511135,1737252647334,-506.21311171,0.00023271,3]
[349511136,1737252647343,-505.52250829,0.00023271,3]
[349511137,1737252647352,-500.0,0.00023271,3]
[349511138,1737252647362,-504.47164063,0.00023271,3]
[349511139,1737252647371,-500.0,0.00023271,3]
[349511140,1737252647380,-626.86712408,0.00023271,3]
[349511141,1737252647390,-503.57692937,0.00023271,3]
[349511142,1737252647399,-503.95603118,0.00023271,3]
[349511143,1737252647408,-502.51541841,0.00023271,3]
[349511144,1737252647417,-504.06216954,0.00023271,3]
[349511145,1737252647427,-503.17482363,0.00023271,3]
[349511146,1737252647436,-503.48463422,0.00023271,3]
[349511147,1737252647445,-500.0,0.00023271,3]
[349511148,1737252647454,-507.54469566,0.00023271,3]
[349511149,1737252647463,-504.87001354,0.00023271,3]
[349511150,1737252647472,-505.80223705,0.00023271,3]
[349511151,1737252647480,-500.0,0.00023271,3]
[349511152,1737252647489,-504.66897049,0.00023271,3]
[349511153,1737252647500,-506.75349241,0.00023271,3]
[349511154,1737252647509,-505.87364956,0.00023271,3]
[349511155,1737252647518,-500.0,0.00023271,3]
[349511156,1737252647528,-505.342124,0.00023271,3]
[349511157,1737252647537,-500.0,0.00023271,3]
[349511158,1737252647546,-505.431166,0.00023271,3]
[349511159,1737252647555,-503.63008894,0.00023271,3]
[349511160,1737252647564,-316.68383927,0.00023271,3]
[349511161,1737252647574,-500.0,0.00023271,3]
[349511162,1737252647586,-383.1125694,0.00023271,3]
[349511163,1737252647594,-500.0,0.00023271,3]
[349511164,1737252647603,-505.81189838,0.00023271,3]
[349511165,1737252647612,-500.0,0.00023271,3]
[349511166,1737252647621,-502.85252833,0.00023271,3]
[349511167,1737252647630,-500.0,0.00023271,3]
[349511168,1737252647639,-500.0,0.00023272,3]
[349511169,1737252647648,-353.08161535,0.00023272,3]
[349511170,1737252647657,-508.13284269,0.00023272,3]
[349511171,1737252647666,-501.76716175,0.00023272,3]
[349511172,1737252647674,-503.59185863,0.00023272,3]
[349511173,1737252647683,-505.50905627,0.00023272,3]
[349511174,1737252647692,-500.0,0.00023272,3]
[349511175,1737252647701,-485.82133094,0.00023272,3]
[349511176,1737252647711,-536.19302967,0.00023272,3]
[349511177,1737252647720,-7574.06,0.00023272,3]
[349511178,1737252647729,-500.0,0.00023272,3]
[349511179,1737252647739,-500.0,0.00023272,3]
[349511180,1737252647748,-500.0,0.00023272,3]
[349511181,1737252647758,-503.82085242,0.00023272,3]
[349511182,1737252647767,-528.12034798,0.00023272,3]
[349511183,1737252647776,-502.96005489,0.00023272,3]
[349511184,1737252647785,-500.0,0.00023272,3]
[349511185,1737252647794,-504.24788127,0.00023272,3]
[349511186,1737252647804,-503.56231021,0.00023272,3]
[349511187,1737252647814,-505.6494691,0.00023272,3]
[349511188,1737252647823,-503.50562404,0.00023272,3]
[349511189,1737252647832,-506.63759897,0.00023272,3]
[349511190,1737252647843,-503.69743066,0.00023272,3]
[349511191,1737252647853,-332.89753637,0.00023272,3]
[349511192,1737252647862,-500.0,0.00023272,3]
[349511193,1737252647871,-504.66094361,0.00023272,3]
[349511194,1737252647880,-500.0,0.00023272,3]
[349511195,1737252647890,-503.51885228,0.00023272,3]
[349511196,1737252647900,-503.55019873,0.00023272,3]
[349511197,1737252647909,-505.19257915,0.00023272,3]
[349511198,1737252647919,-503.72850578,0.00023272,3]
[349511199,1737252647929,-503.15147419,0.00023272,3]
[349511200,1737252647938,-500.0,0.00023272,3]
[349511201,1737252647947,-500.0,0.00023272,3]
[349511202,1737252647956,-502.33011852,0.00023272,3]
[349511203,1737252647965,-569.37759349,0.00023272,3]
[349511204,1737252647974,-503.55056252,0.00023272,3]
[349511205,1737252647983,-303.02447263,0.00023272,3]
[349511206,1737252647992,-500.0,0.00023273,3]
[349511207,1737252648004,-530.99542347,0.00023273,3]
[349511208,1737252648013,-500.0,0.00023273,3]
[349511209,1737252648022,-500.0,0.00023273,3]
[349511210,1737252648030,-290.01299124,0.00023273,3]
[349511211,1737252648040,-500.0,0.00023273,3]
[349511212,1737252648049,-496.86869731,0.00023281,3]
[349511213,1737252648058,-401.44011676,0.00023281,3]
[349511214,1737252648067,-500.0,0.00023281,3]
[349511215,1737252648077,-552.85002776,0.00023281,3]
[349511216,1737252648086,-353.97411294,0.00023281,3]
[349511217,1737252648095,-304.02197493,0.00023281,3]
[349511218,1737252648104,-500.0,0.00023281,3]
[349511219,1737252648114,-500.0,0.00023281,3]
[349511220,1737252648123,-500.0,0.00023281,3]
[349511221,1737252648132,-505.83017731,0.00023281,3]
[349511222,1737252648141,-304.41273962,0.00023314,3]
[349511223,1737252648151,-304.41273962,0.00023383,3]
[349511224,1737252648161,-500.0,0.00023406,3]
[349511225,1737252648170,-526.05,0.00023406,3]
[349511226,1737252648179,-412.54036307,0.00023406,3]
[349511227,1737252648189,-500.0,0.00023406,3]
[349511228,1737252648198,-493.93293701,0.00023406,3]
[349511229,1737252648207,-500.0,0.00023406,3]
[349511230,1737252648216,-500.0,0.00023406,3]
[349511231,1737252648225,-1419.11,0.00023406,3]
[349511232,1737252648234,-618.56,0.00023406,3]
[349511233,1737252648325,-297.40949403,0.00023406,3]
[349511234,1737252648336,-583.25,0.00023406,3]
[349511235,1737252648346,-500.0,0.00023407,3]
[349511236,1737252648356,-301.66905166,0.00023407,3]
[349511237,1737252648366,-500.0,0.00023407,3]
[349511238,1737252648376,-500.0,0.00023407,3]
[349511239,1737252648385,-500.0,0.00023407,3]
[349511240,1737252648395,-500.0,0.00023407,3]
[349511241,1737252648404,-265.12066353,0.00023407,3]
[349511242,1737252648414,-500.0,0.00023407,3]
[349511243,1737252648424,-500.0,0.00023407,3]
[349511244,1737252648434,-500.0,0.00023407,3]
[349511245,1737252648444,-500.0,0.00023407,3]
[349511246,1737252648453,-500.0,0.00023407,3]
[349511247,1737252648463,-500.0,0.00023407,3]
[349511248,1737252648472,-500.0,0.00023407,3]
[349511249,1737252648481,-500.0,0.00023407,3]
[349511250,1737252648490,-1602.07,0.00023407,3]
[349511251,1737252648501,-4779.75,0.00023407,3]
[349511252,1737252648510,-500.0,0.00023407,3]
[349511253,1737252648520,-500.0,0.00023407,3]
[349511254,1737252648530,-500.0,0.00023407,3]
[349511255,1737252648539,-500.0,0.00023407,3]
[349511256,1737252648549,-500.0,0.00023407,3]
[349511257,1737252648559,-2110.91,0.00023407,3]
[349511258,1737252648568,-500.0,0.00023407,3]
[349511259,1737252648577,-278.89296846,0.00023408,3]
[349511260,1737252648587,-500.0,0.00023408,3]
[349511261,1737252648597,-229.21370418,0.00023408,3]
[349511262,1737252648606,-500.0,0.00023408,3]
[349511263,1737252648616,-500.0,0.00023408,3]
[349511264,1737252648626,-500.0,0.00023408,3]
[349511265,1737252648635,-639.93950193,0.00023408,3]
[349511266,1737252648644,-500.0,0.00023408,3]
[349511267,1737252648654,-500.0,0.00023408,3]
[349511268,1737252648663,-500.0,0.00023408,3]
[349511269,1737252648672,-350.62414425,0.00023408,3]
[349511270,1737252648682,-500.0,0.00023408,3]
[349511271,1737252648691,-308.46801101,0.00023408,3]
[349511272,1737252648700,-500.0,0.00023408,3]
[349511273,1737252648709,-500.0,0.00023408,3]
[349511274,1737252648719,-649.88,0.00023408,3]
[349511275,1737252648728,-252.41708006,0.00023408,3]
[349511276,1737252648737,-514.45905066,0.00023408,3]
[349511277,1737252648746,-500.0,0.00023408,3]
[349511278,1737252648758,-500.0,0.00023408,3]
[349511279,1737252648767,-500.0,0.00023408,3]
[349511280,1737252648777,-500.0,0.00023408,3]
[349511281,1737252648786,-500.0,0.00023408,3]
[349511282,1737252648796,-500.0,0.00023408,3]
[349511283,1737252648805,-326.4015586,0.00023408,3]
[349511284,1737252648815,-594.32051069,0.00023408,3]
[349511285,1737252648825,-500.0,0.00023408,3]
[349511286,1737252648835,-500.0,0.00023408,3]
[349511287,1737252648848,-500.0,0.00023408,3]
[349511288,1737252648858,-500.0,0.00023408,3]
[349511289,1737252648867,-500.0,0.00023409,3]
[349511290,1737252648876,-500.0,0.00023409,3]
[349511291,1737252648887,-7574.06,0.00023409,3]
[349511292,1737252648897,-500.0,0.00023409,3]
[349511293,1737252648907,-500.0,0.00023409,3]
[349511294,1737252648917,-451.74798679,0.00023409,3]
[349511295,1737252648928,-466.1079941,0.00023409,3]
[349511296,1737252648939,-196.02912317,0.00023409,3]
[349511297,1737252648948,-579.45367837,0.00023409,3]
[349511298,1737252648959,-500.0,0.00023409,3]
[349511299,1737252648969,-500.0,0.00023409,3]
[349511300,1737252648979,-256.0541716,0.0002341,3]
[349511301,1737252648988,-500.0,0.0002341,3]
[349511302,1737252648997,-210.38198708,0.0002341,3]
[349511303,1737252649008,-500.0,0.0002341,3]
[349511304,1737252649017,-153.99634899,0.00023418,3]
[349511305,1737252649027,-500.0,0.00023418,3]
[349511306,1737252649037,-473.9375577,0.00023418,3]
[349511307,1737252649046,-396.26133432,0.00023418,3]
[349511308,1737252649056,-166.230327,0.00023435,2]
[349511309,1737252649065,-152.96013806,0.00023444,2]
[349511310,1737252649075,-304.41273962,0.00023452,3]
[349511311,1737252649084,-500.0,0.00023473,2]
[349511312,1737252649093,-501.2321588,0.00023473,2]
[349511313,1737252649102,-500.0,0.00023473,2]